Cogmind - Beta 11.1 @@@ ROGUE MODE // 2022.12.15 @ 22:55:40 Player: Ischenous Result: Destroyed by Proton Bomb Trap Performance ------------- Evolutions (2) 1000 Regions Visited (4) 800 Robots Destroyed (18) 90 Value Destroyed (637) 637 Prototype IDs (2) 40 Alien Tech Used (0) 0 Bonus (0) 0 TOTAL SCORE: 2567 Bonus ------- None Cogmind --------- Core Integrity 0/550 Matter 290/300 Energy 81/100 System Corruption 1% Temperature Cool (0) Movement Core (100) Ox1 Location -8/Storage Parts ------- > --- POWER (2) -------- (None) > --- PROPULSION (2) --- (None) > --- UTILITY (5) ------ (None) > --- WEAPON (2) ------- Heavy Laser > --- INVENTORY (5) ---- Signal Interpreter Terrain Scan Processor Light Assault Rifle Improved Light Cannon Peak State ------------ > --- POWER ------------ Heavy Ion Engine > --- PROPULSION ------- Aluminum Leg Aluminum Leg > --- UTILITY ---------- Small Storage Unit Hardened Light Armor Plating > --- WEAPON ----------- Heavy EM Shotgun Particle Cannon > --- INVENTORY -------- Ion Engine Signal Interpreter Terrain Scan Processor Light Armor Plating Light Assault Rifle Improved Light Cannon [Rating: 14] Favorites ----------- Power Light Ion Engine Engine Light Ion Engine Propulsion Compact Wheel Leg Aluminum Leg Wheel Compact Wheel Utility Small Storage Unit Storage Small Storage Unit Protection Hardened Light Armor Plating Weapon EM Pulse Gun Energy Gun EM Pulse Gun Energy Cannon Particle Cannon Ballistic Gun Light Assault Rifle Ballistic Cannon Improved Light Cannon Build | -11 -10 -9 -8 -8 ------- Run | Scr Mat Mat Mat Sto Slots Evolved 4 | . . 2 2 . Power 1 | . . 1 . . Propulsion . | . . . . . Utility 3 | . . 1 2 . Weapon . | . . . . . Parts Attached 18 | 6 3 . . 9 Power 3 | 1 . . . 2 Engine 3 | 1 . . . 2 Core . | . . . . . Reactor . | . . . . . Propulsion 5 | 2 1 . . 2 Treads . | . . . . . Leg 2 | . . . . 2 Wheel 3 | 2 1 . . . Hover . | . . . . . Flight . | . . . . . Utility 3 | 1 1 . . 1 Device . | . . . . . Storage 1 | 1 . . . . Processor . | . . . . . Hackware . | . . . . . Protection 2 | . 1 . . 1 Artifact . | . . . . . Weapon 7 | 2 1 . . 4 Energy Gun 4 | 1 . . . 3 Energy Cannon 1 | . . . . 1 Ballistic Gun 1 | 1 . . . . Ballistic Cannon 1 | . 1 . . . Launcher . | . . . . . Special Weapon . | . . . . . Impact Weapon . | . . . . . Slashing Weapon . | . . . . . Piercing Weapon . | . . . . . Special Melee Weapon . | . . . . . Unidentified Prototypes 2 | . . . . 2 Parts Lost 14 | . . . . 14 Power 3 | . . . . 3 Propulsion 4 | . . . . 4 Utility 3 | . . . . 3 Weapon 4 | . . . . 4 Highest Loss Streak 6 | . . . . 6 To Critical Strikes . | . . . . . Average Slot Usage (%) 68 | . 94 77 63 54 Engine 10 | . 14 11 9 9 Leg 3 | . . . . 6 Wheel 15 | . 28 22 18 7 Storage 10 | . 14 11 9 8 Protection 7 | . 8 11 9 6 Energy Gun 8 | . 14 11 9 5 Energy Cannon 2 | . . . . 5 Ballistic Gun 1 | . 5 . . . Ballistic Cannon 7 | . 8 11 9 5 Naked Turns 5 | . . . . 5 Heaviest Build 29 | 11 19 19 19 29 Greatest Support 32 | 32 32 26 26 26 Greatest Overweight (x) 3 | . . . . 3 Average Overweight (x) . | . . . . . Largest Inventory Capacity 8 | 8 8 8 8 8 Average Capacity 7 | 6 8 8 8 7 Most Carried 8 | 4 7 7 7 8 Average Carried 5 | 2 5 7 7 6 Final Capacity 8 | 8 8 8 8 5 Final Carried 7 | 3 7 7 7 4 Class Distribution -------------------- 100% | Mutant Dominant Class ---------------- Mutant | -10/Materials Mutant | -9/Materials Mutant | -8/Materials Mutant | -8/Storage Resources | -11 -10 -9 -8 -8 ----------- Run | Scr Mat Mat Mat Sto Matter Collected 438 | 258 60 . . 120 Remotely . | . . . . . Salvage Created 669 | . 148 . . 521 Parts 36 | . 13 . . 23 Haulers Intercepted 2 | . 2 . . . Recyclers Shooed 2 | . . . . 2 Parts Field Recycled . | . . . . . Retrieved Matter . | . . . . . Parts Self-Destructed . | . . . . . Prevented . | . . . . . Kills | -11 -10 -9 -8 -8 ------- Run | Scr Mat Mat Mat Sto Combat Hostiles Destroyed 14 | . 4 . . 10 Guns 6 | . 2 . . 4 Cannons 6 | . . . . 6 AOE 2 | . 2 . . . Classes Destroyed 7 | . 4 . . 3 Builder 1 | . 1 . . . Hauler 2 | . 2 . . . Watcher 1 | . . . . 1 Swarmer 3 | . 3 . . . Grunt 4 | . 1 . . 3 Sentry 5 | . . . . 5 Hunter 2 | . . . . 2 Best Kill Streak 5 | . 5 . . 3 Combat Bots Only 4 | . 4 . . 3 Max Kills in Single Turn 2 | . 2 . . 1 Gunslinging . | . . . . . Exploded 2 | . 2 . . . Melee . | . . . . . Uniques/NPCs Destroyed . | . . . . . Combat | -11 -10 -9 -8 -8 -------- Run | Scr Mat Mat Mat Sto Damage Taken 2005 | . 215 15 . 1775 Core 576 | . 23 . . 553 Absorbed by Shields . | . . . . . Core Remaining (%) 96 | 100 90 100 . . Volleys Fired 61 | . 10 . . 51 Largest 2 | . 2 . . 2 Hottest 118 | . 79 . . 118 Shots Fired 94 | . 20 . . 74 Gun 35 | . 10 . . 25 Cannon 59 | . 10 . . 49 Launcher . | . . . . . Special . | . . . . . Kinetic 27 | . 10 . . 17 Thermal 34 | . . . . 34 Explosive . | . . . . . Electromagnetic 33 | . 10 . . 23 Robot Hit Streak 9 | . 5 . . 9 Robot Miss Streak 4 | . 1 . . 4 Penetration Max . | . . . . . Secondary Targets . | . . . . . Shots Hit Robots 67 | . 13 . . 54 Core Hits 28 | . 8 . . 20 Critical Kills . | . . . . . Critical Parts Destroyed . | . . . . . Critical Strikes . | . . . . . Melee Attacks . | . . . . . Impact . | . . . . . Slashing . | . . . . . Piercing . | . . . . . Sneak Attacks . | . . . . . Combat Hostiles . | . . . . . Follow-up Attacks . | . . . . . Damage Inflicted 1547 | . 390 . . 1157 Guns 473 | . 98 . . 375 Cannons 808 | . 145 . . 663 Explosions 252 | . 147 . . 105 Melee . | . . . . . Ramming 14 | . . . . 14 Kinetic 338 | . 145 . . 193 Thermal 760 | . 147 . . 613 Explosive . | . . . . . Electromagnetic 435 | . 98 . . 337 Impact . | . . . . . Slashing . | . . . . . Piercing . | . . . . . Highest Corruption 1 | . . . . 1 Average Corruption 1 | . . . . 1 Corruption Purged . | . . . . . Corruption Blocked . | . . . . . Overload Shots . | . . . . . Overflow Damage 16 | . . . . 16 Projectiles 16 | . . . . 16 Explosions . | . . . . . Melee . | . . . . . Knockbacks 4 | . 3 . . 1 Impact . | . . . . . Kinetic 4 | . 3 . . 1 Secondary . | . . . . . Self-Inflicted Damage 63 | . . . . 63 Shots 1 | . . . . 1 Rammed 1 | . . . . 1 Targets Rammed 1 | . . . . 1 Kicked . | . . . . . Crushed . | . . . . . Highest Temperature 431 | . 261 9 . 431 Average Temperature 155 | . 101 9 . 169 Received Heat Transfer 657 | . 36 27 . 594 Effects 3 | . . . . 3 Shutdowns 1 | . . . . 1 Energy Bleed 1 | . . . . 1 Interference 1 | . . . . 1 Siege Activations . | . . . . . Robots Corrupted . | . . . . . Combat Hostiles . | . . . . . Parts Fried . | . . . . . Impact Corruptions . | . . . . . Robots Melted . | . . . . . Combat Hostiles . | . . . . . Parts Melted 2 | . . . . 2 Heat Transferred 1175 | . 150 . . 1025 Parts Sabotaged . | . . . . . Parts Stolen . | . . . . . Parts Stripped . | . . . . . Power Chain Reactions 2 | . 1 . . 1 Missiles Intercepted . | . . . . . Alert | -11 -10 -9 -8 -8 ------- Run | Scr Mat Mat Mat Sto Peak Influence 233 | . 181 91 38 233 Initial 76 | . . 76 38 15 Average 87 | . 87 76 38 115 Maximum Alert Level 1 | . . . . 1 Low Security (%) 88 | 100 100 100 100 75 Level 1 11 | . . . . 24 Level 2 . | . . . . . Level 3 . | . . . . . Level 4 . | . . . . . Level 5 . | . . . . . High Security . | . . . . . Max Security . | . . . . . Squads Dispatched 3 | . 1 1 . 1 Investigation . | . . . . . Extermination . | . . . . . Reinforcement 3 | . 1 1 . 1 Assault . | . . . . . Garrison . | . . . . . Intercept . | . . . . . Searches Triggered . | . . . . . Construction Impeded . | . . . . . Haulers Reinforced . | . . . . . Active Scanning Responses . | . . . . . Cargo Convoy Interrupts . | . . . . . Stealth | -11 -10 -9 -8 -8 --------- Run | Scr Mat Mat Mat Sto Distress Signals 5 | . . . 1 4 Communications Jammed . | . . . . . Distress Signals . | . . . . . Times Spotted 27 | . 5 2 4 16 Peak Tracking Total 6 | . 4 1 6 4 Tactical Retreats . | . . . . . Traps | -11 -10 -9 -8 -8 ------- Run | Scr Mat Mat Mat Sto Traps Triggered 3 | . 1 . . 2 Indirectly . | . . . . . Trap Hack Attempts . | . . . . . Triggered . | . . . . . Disarmed . | . . . . . Reprogrammed . | . . . . . Reused . | . . . . . Traps Extracted . | . . . . . Installed . | . . . . . Triggered . | . . . . . Machines | -11 -10 -9 -8 -8 ---------- Run | Scr Mat Mat Mat Sto Machines Disabled 6 | . 3 . . 3 Max in Single Turn 2 | . 2 . . 1 Machines Sabotaged . | . . . . . Garrisons Compromised . | . . . . . Overloaded Fab Kills . | . . . . . Hacking | -11 -10 -9 -8 -8 --------- Run | Scr Mat Mat Mat Sto Machines Accessed 2 | . 1 . . 1 Terminals 2 | . 1 . . 1 Fabricators . | . . . . . Repair Stations . | . . . . . Recycling Units . | . . . . . Scanalyzers . | . . . . . Garrison Access . | . . . . . Total Hacks 3 | . 2 . . 1 Successful 3 | . 2 . . 1 Failed . | . . . . . Catastrophic . | . . . . . Database Lockouts . | . . . . . Manual . | . . . . . Terminals 3 | . 2 . . 1 Fabricators . | . . . . . Repair Stations . | . . . . . Recycling Units . | . . . . . Scanalyzers . | . . . . . Garrison Access . | . . . . . Terminal Hacks 3 | . 2 . . 1 Emergency Access Points 1 | . 1 . . . Alert Level 1 | . 1 . . . Zone Layout 1 | . . . . 1 Fabricator Hacks . | . . . . . Repair Station Hacks . | . . . . . Recycling Unit Hacks . | . . . . . Scanalyzer . | . . . . . Garrison Access Hacks . | . . . . . Unauthorized Hacks . | . . . . . Terminals . | . . . . . Fabricators . | . . . . . Repair Stations . | . . . . . Recycling Units . | . . . . . Scanalyzers . | . . . . . Garrison Access . | . . . . . Data Cores Recovered . | . . . . . Used . | . . . . . Hacking Detections . | . . . . . Full Trace Events . | . . . . . Feedback Events . | . . . . . Feedback Blocked . | . . . . . Robot Schematics Acquired . | . . . . . Robots Built . | . . . . . Authchips . | . . . . . Time . | . . . . . Total Robot Build Rating . | . . . . . Part Schematics Acquired . | . . . . . Parts Built . | . . . . . Authchips . | . . . . . Time . | . . . . . Total Part Build Rating . | . . . . . Parts Repaired . | . . . . . Time . | . . . . . Parts Recycled . | . . . . . Recycled Matter . | . . . . . Retrieved Matter . | . . . . . Retrieved Components . | . . . . . Parts Scanalyzed . | . . . . . Part Schematics Acquired . | . . . . . Parts Damaged . | . . . . . Bothacking | -11 -10 -9 -8 -8 ------------ Run | Scr Mat Mat Mat Sto Used RIF Installer . | . . . . . Robots Hacked . | . . . . . Non-combat . | . . . . . Combat . | . . . . . Robot Hacks Applied . | . . . . . Relay Couplers Released . | . . . . . Fabnet Peak Effective % . | . . . . . Robots Rewired . | . . . . . Allies Hacked . | . . . . . Hacks Repelled . | . . . . . Allies | -11 -10 -9 -8 -8 -------- Run | Scr Mat Mat Mat Sto Total Allies . | . . . . . Largest Group . | . . . . . Highest-Rated Group . | . . . . . Highest-Rated Ally . | . . . . . Total Orders . | . . . . . Ally Attacks . | . . . . . Total Damage . | . . . . . Kills . | . . . . . Allies Corrupted . | . . . . . Allies Melted . | . . . . . Intel | -11 -10 -9 -8 -8 ------- Run | Scr Mat Mat Mat Sto Robot Analysis Total . | . . . . . Derelict Logs Recovered . | . . . . . Drone Launches . | . . . . . Drone Recoveries . | . . . . . Exploration | -11 -10 -9 -8 -8 ------------- Run | Scr Mat Mat Mat Sto Turns Passed 936 | 78 217 107 93 441 Spaces Moved 702 | 71 185 119 104 223 Core 43 | 15 . . . 28 Treads . | . . . . . Legs 64 | . . . . 64 Wheels 595 | 56 185 119 104 131 Hover . | . . . . . Flight . | . . . . . Fastest Speed 50 | 50 90 90 90 50 Average Speed 102 | 89 95 90 90 126 Slowest Speed 260 | 100 100 90 90 260 Overloaded Moves . | . . . . . Propulsion Burnouts . | . . . . . Robots Hopped . | . . . . . Cave-ins Triggered . | . . . . . Exploration Rate (%) 21 | 4 39 14 10 39 Regions Visited 4 Branch Regions 1 Pre-discovered Areas . | . . . . . Known Exits Taken . | . . . . . Unknown Exits Taken 4 | 1 1 1 1 . Scrap Searched . | . . . . . Spaces Dug . | . . . . . Terrain Destroyed 6 | . 2 . . 4 Melee . | . . . . . Projectile . | . . . . . AOE 6 | . 2 . . 4 Terrain Rammed . | . . . . . Walls Destroyed . | . . . . . Machines Disabled . | . . . . . Actions | -11 -10 -9 -8 -8 --------- Run | Scr Mat Mat Mat Sto Total 819 | 85 204 118 103 309 Wait 20 | . . . . 20 Move 698 | 70 184 118 103 223 Hop . | . . . . . Pick Up 20 | 9 6 . . 5 Fast Attach . | . . . . . Attach 15 | 6 1 . . 8 Detach . | . . . . . Swap 3 | . 2 . . 1 Drop 1 | . 1 . . . Fire 61 | . 10 . . 51 Melee . | . . . . . Ram 1 | . . . . 1 Kick . | . . . . . Crush . | . . . . . Escape Stasis . | . . . . . Rewire . | . . . . . Trap . | . . . . . Miscellaneous . | . . . . . Route ------- -11/Scrapyard -10/Materials -9/Materials -8/Materials -8/Storage History --------- Turn | Location | Event 19 | -11/Scrapyard | Discovered new exit (range 15) 79 | -11/Scrapyard | Entered Materials 267 | -10/Materials | Discovered new exit (range 13) 296 | -10/Materials | Entered another Materials area 296 | -9/Materials | Evolved 2 slots: Power x1, Utility x1 311 | -9/Materials | Build established: Mutant 399 | -9/Materials | Discovered new exit (range 3) 403 | -9/Materials | Entered another Materials area 403 | -8/Materials | Evolved 2 slots: Utility x2 403 | -8/Materials | Discovered new exit (range 7) 496 | -8/Materials | Entered Storage 719 | -8/Storage | Lost 3 parts (1p2n) 826 | -8/Storage | Lost 3 parts (1n1u1w) 896 | -8/Storage | Core integrity fell below 50% 918 | -8/Storage | Core integrity fell below 20% 937 | -8/Storage | Destroyed by Proton Bomb Trap Last Messages --------------- 00891_ K-01 Serf collects debris. 00895_ Critical hit (Burn: +37). 00897_ K-01 Serf collects debris. 00898_ Ion Engine destroyed. 00900_ R-06 Scavenger collects Wheel. 00901_ Y-45 Defender destroyed. 00902_ R-06 Scavenger collects Wheel. 00902_ U-05 Engineer lays Concrete. 00903_ R-06 Scavenger destroyed. 00903_ U-05 Engineer lays Concrete. 00905_ Aluminum Leg destroyed. 00908_ Hvy. EM Shotgun destroyed. 00909_ Lgt. Armor Plating destroyed. 00922_ Critical hit (Burn: +37). 00924_ Sml. Storage Unit destroyed. 00924_ R-06 Scavenger collects Corrupted Hvy. Assault Rifle. 00934_ Heat Sink melted. 00934_ Y-45 Defender destroyed. 00937_ Triggered Proton Bomb Trap. 00937_ A bubble of electromagnetic force engulfs the area. Map ----- +----------------------------------------------------+ | ??????????????????? ?????????????????# """ # | | ???????????????+???" "????????????????# + | | ???????????????# """ T????????????????# """ # | | ???????????????# """ "????????????????# """ # | | ???????????????# ????????????????# """ # | | ???????????????# !! ?????????????????# # | | ???????????????# !] ?????????????????##"T"##### | | ???????????????? !] ??????????????????#"""#???# | | ?????????????????? ??????????????????#####???# | | ???????#############+############################ | | ??????? % !=%*% ^ | | ??????? *==| | | ??????? %! % | | ??????????????##### [##########################+" | | ??????????##### ### #??????????????????????#" | | ??????????# = # #??????????????????????##"%" | | ??????????#""" # #???????????????????????#[ | | ??????????#""" = # #???????????????????????#[[[ | | ??????????#""" " #???????????????????????#### | | ??????????#""" = # #??????????????????????????? | | ??????????#""" # #??????????????????????????? | | ??????????# # #??????????????????????????? | | ??????????######### #######????????????????????? | | ?????????????????# # [[#????????????????????? | | ?????????????????# # ^[[#????????????????????? | | ?????????????????# !+%@[[#????????????????????? | | ?????????????????# ######????????????????????? | | ?????????????????# #?????????????????????????? | | ?????????????????#######?????????????????????????? | | ?????????????????????????????????????????????????? | | ?????????????????????????????????????????????????? | | ?????????????????????????????????????????????????? | | ?????????????????????????????????????????????????? | | ?????????????????????????????????????????????????? | | ?????????????????????????????????????????????????? | | ?????????????????????????????????????????????????? | | | | | | | | | | | | | | | | | | | | | | | | | | | | | +----------------------------------------------------+ Best States ------------- Heat Dissipation 31 Energy Generation 19 Energy Capacity 305 Matter Stores 300 Matter Capacity 300 Sight Range 16 Terrain Scan Density 10 Armor Coverage 150 Evasion (%) 50 Item Schematics ----------------- None Robot Schematics ------------------ None Fabricated ------------ Nothing Alien Tech Used ----------------- None Achievements -------------- None Challenges ------------ None Game ------ Seed BeamArcWand Manual? 0 Play Time 00:14:00 Cumulative 102.8 hours Start 2022.12.15 @ 22:33:20 End 2022.12.15 @ 22:55:40 Sessions 1 Manual Loads 0 Difficulty Rogue Special Mode None Game No. 83 Rogue 83 Adventurer 0 Explorer 0 Win Type - Total 0 Types 0/0/0/0/0/0/0/0/0 Lore% 34 Gallery% 38 Achievement% 30 Wizard Run 0 Options --------- ASCII 0 Keyboard 0 Movement Arrows Keybinds 0 Fullscreen 1 Font 18/SmallcapsGlow Map View 76x50 Tactical HUD 1 Map Filters NONE Filters NONE Steam 1 RUN: 411f4540-1394-42c7-baf8-95e7607514b8